[Event "Titled Tuesday Blitz June 6 Early 2023"]
[White "Lopez Idarraga, Daniel Eduardo"]
[Black "Hua, Lefong"]
[WhiteFideId "4405501"]
[BlackFideId "2602253"]
[WhiteElo "1980"]
[BlackElo "2640"]
[Result "0-1"]
[Round "5"]
[TimeControl "180+2"]
[Date "2023.06.06"]
[WhiteClock "0:00:01"]
[BlackClock "0:00:13"]
[Board "72"]

1. d4 {[%clk 0:03:00]}  Nf6 {[%clk 0:03:00]} 2. Bf4 {[%clk 0:03:00]}  g6 {[%clk 0:03:00]} 3. e3 {[%clk 0:03:00]}  Bg7 {[%clk 0:03:00]} 4. Nf3 {[%clk 0:03:01]}  O-O {[%clk 0:03:00]} 5. Be2 {[%clk 0:03:01]}  d6 {[%clk 0:02:58]} 6. h3 {[%clk 0:03:01]}  c5 {[%clk 0:02:58]} 7. c3 {[%clk 0:02:59]}  b6 {[%clk 0:02:58]} 8. O-O {[%clk 0:02:59]}  Bb7 {[%clk 0:02:59]} 9. Bh2 {[%clk 0:02:59]}  Nbd7 {[%clk 0:02:59]} 10. Nbd2 {[%clk 0:02:59]}  a6 {[%clk 0:02:59]} 11. a4 {[%clk 0:03:00]}  Qc7 {[%clk 0:02:59]} 12. Qb3 {[%clk 0:02:59]}  Bc6 {[%clk 0:02:58]} 13. Rfe1 {[%clk 0:02:54]}  Qb7 {[%clk 0:02:57]} 14. Bf1 {[%clk 0:02:55]}  b5 {[%clk 0:02:54]} 15. axb5 {[%clk 0:02:35]}  axb5 {[%clk 0:02:54]} 16. Rec1 {[%clk 0:02:15]}  c4 {[%clk 0:02:46]} 17. Qd1 {[%clk 0:02:15]}  Nb6 {[%clk 0:02:36]} 18. Rxa8 {[%clk 0:02:12]}  Rxa8 {[%clk 0:02:35]} 19. Ra1 {[%clk 0:02:13]}  Na4 {[%clk 0:02:33]} 20. Qb1 {[%clk 0:02:05]}  Ne4 {[%clk 0:02:29]} 21. Nxe4 {[%clk 0:01:58]}  Bxe4 {[%clk 0:02:30]} 22. Qc1 {[%clk 0:01:58]}  f5 {[%clk 0:02:13]} 23. Nd2 {[%clk 0:01:57]}  Bd5 {[%clk 0:02:11]} 24. Qc2 {[%clk 0:01:41]}  e5 {[%clk 0:02:04]} 25. b3 {[%clk 0:01:34]}  cxb3 {[%clk 0:01:59]} 26. Nxb3 {[%clk 0:01:35]}  Rc8 {[%clk 0:01:57]} 27. Na5 {[%clk 0:01:18]}  Qb6 {[%clk 0:01:48]} 28. Rxa4 {[%clk 0:01:11]}  bxa4 {[%clk 0:01:44]} 29. Qxa4 {[%clk 0:01:02]}  Ra8 {[%clk 0:01:30]} 30. Nc4 {[%clk 0:01:03]}  Qc6 {[%clk 0:01:01]} 31. Qxc6 {[%clk 0:01:01]}  Bxc6 {[%clk 0:01:02]} 32. Nxd6 {[%clk 0:01:01]}  Ra1 {[%clk 0:01:00]} 33. f3 {[%clk 0:00:49]}  exd4 {[%clk 0:00:54]} 34. cxd4 {[%clk 0:00:46]}  Bd5 {[%clk 0:00:46]} 35. Kf2 {[%clk 0:00:46]}  Ra2+ {[%clk 0:00:46]} 36. Kg3 {[%clk 0:00:42]}  Bh6 {[%clk 0:00:44]} 37. Bc4 {[%clk 0:00:34]}  Bxc4 {[%clk 0:00:43]} 38. Nxc4 {[%clk 0:00:35]}  Rc2 {[%clk 0:00:41]} 39. Na3 {[%clk 0:00:16]}  Rc3 {[%clk 0:00:41]} 40. Nb5 {[%clk 0:00:15]}  Rxe3 {[%clk 0:00:40]} 41. Kf2 {[%clk 0:00:16]}  Rb3 {[%clk 0:00:37]} 42. Nc7 {[%clk 0:00:14]}  Rb2+ {[%clk 0:00:37]} 43. Kf1 {[%clk 0:00:14]}  Rc2 {[%clk 0:00:32]} 44. Be5 {[%clk 0:00:13]}  Bg7 {[%clk 0:00:31]} 45. Ne6 {[%clk 0:00:10]}  Bxe5 {[%clk 0:00:28]} 46. dxe5 {[%clk 0:00:11]}  Kf7 {[%clk 0:00:24]} 47. Ng5+ {[%clk 0:00:10]}  Kg7 {[%clk 0:00:24]} 48. f4 {[%clk 0:00:10]}  h6 {[%clk 0:00:21]} 49. Nf3 {[%clk 0:00:09]}  Kf7 {[%clk 0:00:19]} 50. Nd4 {[%clk 0:00:06]}  Rd2 {[%clk 0:00:18]} 51. Nf3 {[%clk 0:00:05]}  Rb2 {[%clk 0:00:18]} 52. Kg1 {[%clk 0:00:06]}  Ke7 {[%clk 0:00:17]} 53. Kh2 {[%clk 0:00:06]}  Rb4 {[%clk 0:00:16]} 54. Kg3 {[%clk 0:00:06]}  Re4 {[%clk 0:00:15]} 55. h4 {[%clk 0:00:06]}  Re3 {[%clk 0:00:15]} 56. Kf2 {[%clk 0:00:06]}  Ra3 {[%clk 0:00:15]} 57. g3 {[%clk 0:00:06]}  Ra4 {[%clk 0:00:14]} 58. Kg2 {[%clk 0:00:04]}  Ke6 {[%clk 0:00:15]} 59. Kh3 {[%clk 0:00:04]}  Kd5 {[%clk 0:00:15]} 60. Ng1 {[%clk 0:00:03]}  Ke4 {[%clk 0:00:15]} 61. Ne2 {[%clk 0:00:03]}  Ra3 {[%clk 0:00:15]} 62. Nc1 {[%clk 0:00:03]}  Re3 {[%clk 0:00:15]} 63. Na2 {[%clk 0:00:02]}  Kf3 {[%clk 0:00:15]} 64. Nb4 {[%clk 0:00:02]}  Kf2 {[%clk 0:00:16]} 65. Nd5 {[%clk 0:00:01]}  Rxg3+ {[%clk 0:00:16]} 66. Kh2 {[%clk 0:00:02]}  Rd3 {[%clk 0:00:16]} 67. Ne7 {[%clk 0:00:01]}  g5 {[%clk 0:00:11]} 68. hxg5 {[%clk 0:00:02]}  hxg5 {[%clk 0:00:11]} 69. fxg5 {[%clk 0:00:03]}  Re3 {[%clk 0:00:11]} 70. Nxf5 {[%clk 0:00:04]}  Rxe5 {[%clk 0:00:11]} 71. Nh4 {[%clk 0:00:04]}  Rxg5 {[%clk 0:00:11]} 72. Kh3 {[%clk 0:00:05]}  Rg8 {[%clk 0:00:09]} 73. Nf5 {[%clk 0:00:05]}  Kf3 {[%clk 0:00:08]} 74. Nh4+ {[%clk 0:00:05]}  Kf4 {[%clk 0:00:09]} 75. Ng2+ {[%clk 0:00:05]}  Kf5 {[%clk 0:00:09]} 76. Kh2 {[%clk 0:00:05]}  Rh8+ {[%clk 0:00:09]} 77. Kg1 {[%clk 0:00:05]}  Ke4 {[%clk 0:00:09]} 78. Kf2 {[%clk 0:00:06]}  Ra8 {[%clk 0:00:08]} 79. Kg3 {[%clk 0:00:06]}  Rg8+ {[%clk 0:00:09]} 80. Kf2 {[%clk 0:00:06]}  Rg7 {[%clk 0:00:09]} 81. Ne1 {[%clk 0:00:05]}  Kf4 {[%clk 0:00:08]} 82. Ng2+ {[%clk 0:00:05]}  Ke4 {[%clk 0:00:08]} 83. Ne1 {[%clk 0:00:05]}  Rd7 {[%clk 0:00:07]} 84. Ng2 {[%clk 0:00:05]}  Kf5 {[%clk 0:00:08]} 85. Kf3 {[%clk 0:00:04]}  Rd3+ {[%clk 0:00:08]} 86. Ne3+ {[%clk 0:00:05]}  Ke5 {[%clk 0:00:08]} 87. Ke2 {[%clk 0:00:05]}  Ke4 {[%clk 0:00:09]} 88. Ng2 {[%clk 0:00:05]}  Ra3 {[%clk 0:00:09]} 89. Kf2 {[%clk 0:00:05]}  Rb3 {[%clk 0:00:09]} 90. Ke2 {[%clk 0:00:02]}  Rb2+ {[%clk 0:00:09]} 91. Kf1 {[%clk 0:00:03]}  Kf3 {[%clk 0:00:10]} 92. Ne1+ {[%clk 0:00:03]}  Kg3 {[%clk 0:00:10]} 93. Nd3 {[%clk 0:00:02]}  Ra2 {[%clk 0:00:10]} 94. Ke1 {[%clk 0:00:03]}  Kf3 {[%clk 0:00:09]} 95. Kd1 {[%clk 0:00:03]}  Ke3 {[%clk 0:00:10]} 96. Nc1 {[%clk 0:00:03]}  Rh2 {[%clk 0:00:11]} 97. Nb3 {[%clk 0:00:02]}  Kd3 {[%clk 0:00:11]} 98. Nc5+ {[%clk 0:00:02]}  Kc4 {[%clk 0:00:11]} 99. Ne4 {[%clk 0:00:02]}  Kd4 {[%clk 0:00:12]} 100. Nd2 {[%clk 0:00:02]}  Kd3 {[%clk 0:00:12]} 101. Nf3 {[%clk 0:00:02]}  Rh1+ {[%clk 0:00:13]} 102. Ne1+ {[%clk 0:00:02]}  Ke3 {[%clk 0:00:13]} 103. Kc2 {[%clk 0:00:01]}  Rxe1 {[%clk 0:00:13]} 0-1


[Site "https://www.chess.com"]

[Event "Titled Tuesday Blitz June 6 Early 2023"]
[White "Gavrilov, Maxim"]
[Black "Bashirli, Saadat"]
[WhiteFideId "24271454"]
[BlackFideId "13429990"]
[WhiteElo "1969"]
[BlackElo "1408"]
[Result "1/2-1/2"]
[Round "5"]
[TimeControl "180+2"]
[Date "2023.06.06"]
[WhiteClock "0:00:10"]
[BlackClock "0:00:09"]
[Board "73"]

1. d4 {[%clk 0:03:00]}  d5 {[%clk 0:02:58]} 2. c4 {[%clk 0:03:00]}  e6 {[%clk 0:02:58]} 3. Nc3 {[%clk 0:02:59]}  c6 {[%clk 0:02:58]} 4. e4 {[%clk 0:02:59]}  dxe4 {[%clk 0:02:58]} 5. Nxe4 {[%clk 0:03:00]}  Bb4+ {[%clk 0:02:58]} 6. Bd2 {[%clk 0:02:59]}  Qxd4 {[%clk 0:02:58]} 7. Bxb4 {[%clk 0:02:59]}  Qxe4+ {[%clk 0:02:59]} 8. Be2 {[%clk 0:02:57]}  Na6 {[%clk 0:02:59]} 9. Bd6 {[%clk 0:02:55]}  Bd7 {[%clk 0:02:55]} 10. Nf3 {[%clk 0:02:46]}  Nf6 {[%clk 0:02:51]} 11. O-O {[%clk 0:02:44]}  h5 {[%clk 0:02:37]} 12. Re1 {[%clk 0:02:38]}  Qg6 {[%clk 0:02:21]} 13. Ne5 {[%clk 0:02:35]}  Qg5 {[%clk 0:02:17]} 14. Qd4 {[%clk 0:02:29]}  c5 {[%clk 0:02:01]} 15. Bxc5 {[%clk 0:02:03]}  Nxc5 {[%clk 0:01:59]} 16. Qxc5 {[%clk 0:02:04]}  Rc8 {[%clk 0:01:59]} 17. Qd4 {[%clk 0:02:03]}  Bc6 {[%clk 0:01:48]} 18. Nxc6 {[%clk 0:01:57]}  bxc6 {[%clk 0:01:42]} 19. Bf3 {[%clk 0:01:38]}  O-O {[%clk 0:01:34]} 20. Re5 {[%clk 0:01:37]}  Qg6 {[%clk 0:01:31]} 21. Qxa7 {[%clk 0:01:37]}  h4 {[%clk 0:01:25]} 22. h3 {[%clk 0:01:35]}  Rfd8 {[%clk 0:01:23]} 23. Rae1 {[%clk 0:01:34]}  Ra8 {[%clk 0:01:14]} 24. Qb6 {[%clk 0:01:20]}  Nd7 {[%clk 0:01:12]} 25. Qc7 {[%clk 0:01:12]}  Nxe5 {[%clk 0:01:09]} 26. Rxe5 {[%clk 0:01:13]}  Rd2 {[%clk 0:01:03]} 27. Bxc6 {[%clk 0:01:03]}  Rf8 {[%clk 0:00:50]} 28. Be4 {[%clk 0:00:58]}  Qf6 {[%clk 0:00:43]} 29. Bf3 {[%clk 0:00:53]}  Rfd8 {[%clk 0:00:37]} 30. Re1 {[%clk 0:00:50]}  Qxb2 {[%clk 0:00:34]} 31. a4 {[%clk 0:00:50]}  Qa2 {[%clk 0:00:24]} 32. a5 {[%clk 0:00:47]}  R2d7 {[%clk 0:00:24]} 33. Qc5 {[%clk 0:00:40]}  Qd2 {[%clk 0:00:18]} 34. Ra1 {[%clk 0:00:35]}  Qc3 {[%clk 0:00:16]} 35. Rf1 {[%clk 0:00:19]}  Rd4 {[%clk 0:00:14]} 36. a6 {[%clk 0:00:18]}  Rxc4 {[%clk 0:00:14]} 37. Qe7 {[%clk 0:00:18]}  Rf8 {[%clk 0:00:11]} 38. a7 {[%clk 0:00:17]}  Ra4 {[%clk 0:00:11]} 39. a8=Q {[%clk 0:00:12]}  Raxa8 {[%clk 0:00:10]} 40. Bxa8 {[%clk 0:00:12]}  Rxa8 {[%clk 0:00:11]} 41. Qxh4 {[%clk 0:00:12]}  Qf6 {[%clk 0:00:09]} 42. Qe4 {[%clk 0:00:12]}  Re8 {[%clk 0:00:08]} 43. Rd1 {[%clk 0:00:12]}  Rd8 {[%clk 0:00:08]} 44. Re1 {[%clk 0:00:11]}  Qd4 {[%clk 0:00:07]} 45. Qf3 {[%clk 0:00:09]}  Qd2 {[%clk 0:00:07]} 46. Re4 {[%clk 0:00:08]}  Qd1+ {[%clk 0:00:06]} 47. Qxd1 {[%clk 0:00:09]}  Rxd1+ {[%clk 0:00:06]} 48. Kh2 {[%clk 0:00:10]}  Rd5 {[%clk 0:00:06]} 49. Kg3 {[%clk 0:00:10]}  Kf8 {[%clk 0:00:06]} 50. f3 {[%clk 0:00:10]}  Ke7 {[%clk 0:00:06]} 51. Rg4 {[%clk 0:00:11]}  Kf6 {[%clk 0:00:07]} 52. Ra4 {[%clk 0:00:12]}  Rb5 {[%clk 0:00:07]} 53. h4 {[%clk 0:00:12]}  Rc5 {[%clk 0:00:05]} 54. Rf4+ {[%clk 0:00:12]}  Rf5 {[%clk 0:00:04]} 55. Rxf5+ {[%clk 0:00:12]}  Kxf5 {[%clk 0:00:05]} 56. Kf2 {[%clk 0:00:08]}  Kg6 {[%clk 0:00:04]} 57. g4 {[%clk 0:00:08]}  Kf6 {[%clk 0:00:04]} 58. Ke3 {[%clk 0:00:08]}  Kg6 {[%clk 0:00:03]} 59. Kd4 {[%clk 0:00:08]}  Kf6 {[%clk 0:00:03]} 60. f4 {[%clk 0:00:08]}  Ke7 {[%clk 0:00:03]} 61. Kc5 {[%clk 0:00:08]}  Kf6 {[%clk 0:00:03]} 62. Kd6 {[%clk 0:00:07]}  g6 {[%clk 0:00:02]} 63. Kd7 {[%clk 0:00:06]}  Kg7 {[%clk 0:00:02]} 64. g5 {[%clk 0:00:06]}  Kg8 {[%clk 0:00:02]} 65. Ke8 {[%clk 0:00:06]}  Kg7 {[%clk 0:00:03]} 66. Ke7 {[%clk 0:00:06]}  Kg8 {[%clk 0:00:04]} 67. Kd8 {[%clk 0:00:04]}  Kg7 {[%clk 0:00:04]} 68. Ke8 {[%clk 0:00:04]}  Kg8 {[%clk 0:00:04]} 69. Ke7 {[%clk 0:00:04]}  Kg7 {[%clk 0:00:05]} 70. Kd6 {[%clk 0:00:03]}  Kg8 {[%clk 0:00:05]} 71. Ke5 {[%clk 0:00:04]}  Kg7 {[%clk 0:00:06]} 72. Kd6 {[%clk 0:00:02]}  Kg8 {[%clk 0:00:06]} 73. Kd7 {[%clk 0:00:03]}  Kg7 {[%clk 0:00:07]} 74. Ke7 {[%clk 0:00:03]}  Kg8 {[%clk 0:00:07]} 75. Kf6 {[%clk 0:00:03]}  Kf8 {[%clk 0:00:07]} 76. Ke5 {[%clk 0:00:04]}  Ke7 {[%clk 0:00:07]} 77. Ke4 {[%clk 0:00:02]}  Kf8 {[%clk 0:00:07]} 78. Kd4 {[%clk 0:00:03]}  Kg7 {[%clk 0:00:07]} 79. Ke3 {[%clk 0:00:04]}  Kg8 {[%clk 0:00:08]} 80. Kf3 {[%clk 0:00:04]}  Kg7 {[%clk 0:00:09]} 81. Kg4 {[%clk 0:00:05]}  Kg8 {[%clk 0:00:09]} 82. h5 {[%clk 0:00:06]}  gxh5+ {[%clk 0:00:09]} 83. Kxh5 {[%clk 0:00:07]}  Kg7 {[%clk 0:00:09]} 84. Kh4 {[%clk 0:00:07]}  Kg6 {[%clk 0:00:09]} 85. Kg4 {[%clk 0:00:07]}  Kg7 {[%clk 0:00:09]} 86. Kg3 {[%clk 0:00:08]}  Kg6 {[%clk 0:00:09]} 87. Kf3 {[%clk 0:00:08]}  Kf5 {[%clk 0:00:09]} 88. Kg3 {[%clk 0:00:09]}  Kg6 {[%clk 0:00:07]} 89. Kg4 {[%clk 0:00:09]}  f6 {[%clk 0:00:06]} 90. gxf6 {[%clk 0:00:09]}  Kxf6 {[%clk 0:00:07]} 91. Kg3 {[%clk 0:00:09]}  Kf5 {[%clk 0:00:08]} 92. Kf3 {[%clk 0:00:10]}  e5 {[%clk 0:00:08]} 93. fxe5 {[%clk 0:00:10]}  Kxe5 {[%clk 0:00:09]} 1/2-1/2


[Site "https://www.chess.com"]

[Event "Titled Tuesday Blitz June 6 Early 2023"]
[White "Streltsov, Alexey"]
[Black "Rosh Jain"]
[WhiteFideId "24104434"]
[BlackFideId "25789465"]
[WhiteElo "2544"]
[BlackElo "2233"]
[Result "1-0"]
[Round "5"]
[TimeControl "180+2"]
[Date "2023.06.06"]
[WhiteClock "0:00:43"]
[BlackClock "0:00:06"]
[Board "74"]

1. d4 {[%clk 0:03:00]}  Nf6 {[%clk 0:02:57]} 2. Nc3 {[%clk 0:03:01]}  d5 {[%clk 0:02:57]} 3. Bf4 {[%clk 0:03:02]}  e6 {[%clk 0:02:55]} 4. Nb5 {[%clk 0:03:01]}  Na6 {[%clk 0:02:55]} 5. e3 {[%clk 0:03:02]}  c6 {[%clk 0:02:52]} 6. Nc3 {[%clk 0:03:02]}  Bd6 {[%clk 0:02:52]} 7. Bxd6 {[%clk 0:03:00]}  Qxd6 {[%clk 0:02:52]} 8. Bxa6 {[%clk 0:03:01]}  bxa6 {[%clk 0:02:51]} 9. Na4 {[%clk 0:03:02]}  Nd7 {[%clk 0:02:45]} 10. Nf3 {[%clk 0:03:01]}  c5 {[%clk 0:02:44]} 11. dxc5 {[%clk 0:03:02]}  Nxc5 {[%clk 0:02:44]} 12. Nxc5 {[%clk 0:03:03]}  Qxc5 {[%clk 0:02:44]} 13. Qd4 {[%clk 0:03:03]}  Qxd4 {[%clk 0:02:37]} 14. Nxd4 {[%clk 0:02:43]}  Bd7 {[%clk 0:02:34]} 15. Kd2 {[%clk 0:02:38]}  O-O {[%clk 0:02:32]} 16. b4 {[%clk 0:02:31]}  Rab8 {[%clk 0:02:30]} 17. a3 {[%clk 0:02:22]}  a5 {[%clk 0:02:07]} 18. c3 {[%clk 0:02:22]}  a4 {[%clk 0:02:05]} 19. f4 {[%clk 0:02:16]}  Rbc8 {[%clk 0:02:05]} 20. Rhg1 {[%clk 0:01:58]}  Rc4 {[%clk 0:02:03]} 21. g4 {[%clk 0:01:59]}  Rfc8 {[%clk 0:02:02]} 22. Ne2 {[%clk 0:01:59]}  Bb5 {[%clk 0:01:57]} 23. Nd4 {[%clk 0:01:50]}  Ba6 {[%clk 0:01:49]} 24. Rac1 {[%clk 0:01:51]}  Bb7 {[%clk 0:01:49]} 25. g5 {[%clk 0:01:50]}  Kf8 {[%clk 0:01:42]} 26. h4 {[%clk 0:01:50]}  Ke7 {[%clk 0:01:40]} 27. h5 {[%clk 0:01:51]}  g6 {[%clk 0:01:06]} 28. hxg6 {[%clk 0:01:36]}  hxg6 {[%clk 0:01:07]} 29. Rh1 {[%clk 0:01:37]}  Rd8 {[%clk 0:00:52]} 30. Rh7 {[%clk 0:01:36]}  Rcc8 {[%clk 0:00:50]} 31. Rch1 {[%clk 0:01:22]}  Rg8 {[%clk 0:00:49]} 32. R1h2 {[%clk 0:01:17]}  Ba6 {[%clk 0:00:39]} 33. Nf3 {[%clk 0:01:16]}  Bb5 {[%clk 0:00:20]} 34. Ne5 {[%clk 0:01:15]}  Rcf8 {[%clk 0:00:19]} 35. R2h6 {[%clk 0:01:11]}  Ke8 {[%clk 0:00:18]} 36. e4 {[%clk 0:01:08]}  d4 {[%clk 0:00:18]} 37. c4 {[%clk 0:01:07]}  Ba6 {[%clk 0:00:16]} 38. Kd3 {[%clk 0:01:02]}  Bb7 {[%clk 0:00:10]} 39. Kxd4 {[%clk 0:00:51]}  Ba8 {[%clk 0:00:10]} 40. c5 {[%clk 0:00:50]}  Kd8 {[%clk 0:00:08]} 41. Nxf7+ {[%clk 0:00:49]}  Kc8 {[%clk 0:00:06]} 42. Nd6+ {[%clk 0:00:49]}  Kb8 {[%clk 0:00:06]} 43. Ke5 {[%clk 0:00:46]}  Bc6 {[%clk 0:00:05]} 44. Re7 {[%clk 0:00:45]}  a6 {[%clk 0:00:05]} 45. Rhh7 {[%clk 0:00:44]}  a5 {[%clk 0:00:05]} 46. b5 {[%clk 0:00:43]}  Bxe4 {[%clk 0:00:05]} 47. Kxe4 {[%clk 0:00:43]}  Rxf4+ {[%clk 0:00:05]} 48. Kxf4 {[%clk 0:00:42]}  Rf8+ {[%clk 0:00:05]} 49. Ke4 {[%clk 0:00:42]}  e5 {[%clk 0:00:05]} 50. Rb7+ {[%clk 0:00:41]}  Ka8 {[%clk 0:00:05]} 51. Ra7+ {[%clk 0:00:42]}  Kb8 {[%clk 0:00:06]} 52. Rhb7# {[%clk 0:00:43]} 1-0


[Site "https://www.chess.com"]

[Event "Titled Tuesday Blitz June 6 Early 2023"]
[White "Tejedor Fuente, Enrique"]
[Black "Chernomordik, Pavel"]
[WhiteFideId "2299100"]
[BlackFideId "2804530"]
[WhiteElo "2496"]
[BlackElo "2193"]
[Result "1-0"]
[Round "5"]
[TimeControl "180+2"]
[Date "2023.06.06"]
[WhiteClock "0:00:12"]
[BlackClock "0:00:01"]
[Board "75"]

1. d4 {[%clk 0:03:00]}  g6 {[%clk 0:02:59]} 2. h4 {[%clk 0:03:00]}  h6 {[%clk 0:02:57]} 3. h5 {[%clk 0:03:00]}  g5 {[%clk 0:02:57]} 4. f4 {[%clk 0:02:59]}  gxf4 {[%clk 0:02:57]} 5. Bxf4 {[%clk 0:02:59]}  Bg7 {[%clk 0:02:57]} 6. Nf3 {[%clk 0:02:59]}  c5 {[%clk 0:02:54]} 7. e3 {[%clk 0:02:57]}  d6 {[%clk 0:02:51]} 8. Nc3 {[%clk 0:02:55]}  cxd4 {[%clk 0:02:46]} 9. exd4 {[%clk 0:02:55]}  Bg4 {[%clk 0:02:46]} 10. Bb5+ {[%clk 0:02:54]}  Nd7 {[%clk 0:02:43]} 11. Qd2 {[%clk 0:02:51]}  a6 {[%clk 0:02:39]} 12. Bc4 {[%clk 0:02:47]}  Ngf6 {[%clk 0:02:38]} 13. Bb3 {[%clk 0:02:43]}  Bxh5 {[%clk 0:02:30]} 14. O-O-O {[%clk 0:02:34]}  Qa5 {[%clk 0:02:22]} 15. Kb1 {[%clk 0:02:26]}  Bg6 {[%clk 0:02:08]} 16. Nh4 {[%clk 0:02:17]}  Bh7 {[%clk 0:02:01]} 17. Nf3 {[%clk 0:02:15]}  O-O-O {[%clk 0:01:58]} 18. Bxh6 {[%clk 0:02:11]}  Bxh6 {[%clk 0:01:56]} 19. Rxh6 {[%clk 0:02:12]}  Qf5 {[%clk 0:01:41]} 20. Rdh1 {[%clk 0:01:50]}  e6 {[%clk 0:01:30]} 21. a4 {[%clk 0:01:42]}  Rhg8 {[%clk 0:01:29]} 22. a5 {[%clk 0:01:39]}  Bg6 {[%clk 0:01:22]} 23. Nh4 {[%clk 0:01:37]}  Qxa5 {[%clk 0:01:18]} 24. Nxg6 {[%clk 0:01:36]}  Rxg6 {[%clk 0:01:17]} 25. Rxg6 {[%clk 0:01:36]}  fxg6 {[%clk 0:01:17]} 26. Bxe6 {[%clk 0:01:36]}  Kb8 {[%clk 0:01:17]} 27. Qf4 {[%clk 0:01:28]}  Qc7 {[%clk 0:01:05]} 28. g4 {[%clk 0:01:26]}  Rf8 {[%clk 0:00:58]} 29. g5 {[%clk 0:00:46]}  Nh5 {[%clk 0:00:49]} 30. Qg4 {[%clk 0:00:42]}  Nb6 {[%clk 0:00:47]} 31. Qd1 {[%clk 0:00:35]}  Nf4 {[%clk 0:00:39]} 32. Bb3 {[%clk 0:00:34]}  Nh5 {[%clk 0:00:28]} 33. Re1 {[%clk 0:00:33]}  Ka7 {[%clk 0:00:25]} 34. Qd3 {[%clk 0:00:31]}  Nf4 {[%clk 0:00:23]} 35. Qe4 {[%clk 0:00:31]}  Nc4 {[%clk 0:00:16]} 36. Bxc4 {[%clk 0:00:25]}  Qxc4 {[%clk 0:00:16]} 37. d5 {[%clk 0:00:26]}  Qxe4 {[%clk 0:00:15]} 38. Rxe4 {[%clk 0:00:27]}  Nh3 {[%clk 0:00:15]} 39. Re6 {[%clk 0:00:25]}  Nxg5 {[%clk 0:00:14]} 40. Rxg6 {[%clk 0:00:22]}  Nf3 {[%clk 0:00:12]} 41. Rxd6 {[%clk 0:00:22]}  Re8 {[%clk 0:00:11]} 42. Re6 {[%clk 0:00:20]}  Rh8 {[%clk 0:00:09]} 43. Re2 {[%clk 0:00:17]}  Nd4 {[%clk 0:00:07]} 44. Rd2 {[%clk 0:00:17]}  Nf5 {[%clk 0:00:06]} 45. b3 {[%clk 0:00:15]}  Nd6 {[%clk 0:00:06]} 46. Kb2 {[%clk 0:00:15]}  b5 {[%clk 0:00:06]} 47. Re2 {[%clk 0:00:15]}  Kb6 {[%clk 0:00:05]} 48. Re6 {[%clk 0:00:13]}  Kc7 {[%clk 0:00:05]} 49. Ne4 {[%clk 0:00:12]}  Nxe4 {[%clk 0:00:04]} 50. Rxe4 {[%clk 0:00:13]}  Rd8 {[%clk 0:00:04]} 51. c4 {[%clk 0:00:12]}  Kd6 {[%clk 0:00:03]} 52. Kc3 {[%clk 0:00:12]}  Rc8 {[%clk 0:00:01]} 53. Kd4 {[%clk 0:00:12]} 1-0


[Site "https://www.chess.com"]

[Event "Titled Tuesday Blitz June 6 Early 2023"]
[White "Quintiliano Pinto, Renato R."]
[Black "Vyatkin, Dmitry"]
[WhiteFideId "2117568"]
[BlackFideId "4171900"]
[WhiteElo "2459"]
[BlackElo "2279"]
[Result "1-0"]
[Round "5"]
[TimeControl "180+2"]
[Date "2023.06.06"]
[WhiteClock "0:00:16"]
[BlackClock "0:00:14"]
[Board "77"]

1. e4 {[%clk 0:03:00]}  e6 {[%clk 0:02:59]} 2. d4 {[%clk 0:02:59]}  d5 {[%clk 0:03:00]} 3. Nd2 {[%clk 0:02:59]}  c5 {[%clk 0:02:59]} 4. exd5 {[%clk 0:02:57]}  Qxd5 {[%clk 0:02:59]} 5. dxc5 {[%clk 0:02:57]}  Bxc5 {[%clk 0:02:58]} 6. Ngf3 {[%clk 0:02:57]}  Nf6 {[%clk 0:02:58]} 7. Bc4 {[%clk 0:02:56]}  Qd6 {[%clk 0:02:52]} 8. Qe2 {[%clk 0:02:55]}  Qc7 {[%clk 0:02:45]} 9. O-O {[%clk 0:02:47]}  Nbd7 {[%clk 0:02:42]} 10. a4 {[%clk 0:02:46]}  O-O {[%clk 0:02:38]} 11. a5 {[%clk 0:02:46]}  Bd6 {[%clk 0:02:33]} 12. Nb3 {[%clk 0:02:38]}  Ne5 {[%clk 0:02:32]} 13. Nxe5 {[%clk 0:02:37]}  Bxe5 {[%clk 0:02:33]} 14. h3 {[%clk 0:02:38]}  Bd7 {[%clk 0:02:32]} 15. Bd3 {[%clk 0:02:19]}  Bc6 {[%clk 0:02:25]} 16. Nd2 {[%clk 0:02:18]}  Bh2+ {[%clk 0:02:23]} 17. Kh1 {[%clk 0:02:18]}  Bf4 {[%clk 0:02:24]} 18. Nc4 {[%clk 0:02:14]}  Rfd8 {[%clk 0:02:14]} 19. Kg1 {[%clk 0:02:01]}  Rac8 {[%clk 0:02:05]} 20. Be3 {[%clk 0:01:54]}  Bb5 {[%clk 0:01:44]} 21. b3 {[%clk 0:01:48]}  Bxe3 {[%clk 0:01:07]} 22. Qxe3 {[%clk 0:01:47]}  Qc5 {[%clk 0:01:08]} 23. Qg3 {[%clk 0:01:27]}  Rd5 {[%clk 0:01:05]} 24. Rfe1 {[%clk 0:01:20]}  Rg5 {[%clk 0:01:05]} 25. Qe3 {[%clk 0:01:13]}  Qxe3 {[%clk 0:00:55]} 26. Rxe3 {[%clk 0:01:13]}  Nd5 {[%clk 0:00:55]} 27. Rf3 {[%clk 0:00:54]}  Rd8 {[%clk 0:00:52]} 28. Re1 {[%clk 0:00:46]}  Nb4 {[%clk 0:00:51]} 29. Be4 {[%clk 0:00:26]}  Bxc4 {[%clk 0:00:51]} 30. bxc4 {[%clk 0:00:26]}  Rxa5 {[%clk 0:00:52]} 31. Rb3 {[%clk 0:00:24]}  Ra4 {[%clk 0:00:40]} 32. Bxb7 {[%clk 0:00:21]}  Nxc2 {[%clk 0:00:39]} 33. Rc1 {[%clk 0:00:20]}  Rxc4 {[%clk 0:00:33]} 34. Ba6 {[%clk 0:00:17]}  Nd4 {[%clk 0:00:15]} 35. Bxc4 {[%clk 0:00:16]}  Nxb3 {[%clk 0:00:15]} 36. Bxb3 {[%clk 0:00:17]}  g6 {[%clk 0:00:15]} 37. Rc7 {[%clk 0:00:17]}  a5 {[%clk 0:00:15]} 38. Ra7 {[%clk 0:00:17]}  Rb8 {[%clk 0:00:14]} 39. Ba4 {[%clk 0:00:16]}  Rb5 {[%clk 0:00:14]} 40. Bxb5 {[%clk 0:00:16]} 1-0


[Site "https://www.chess.com"]

[Event "Titled Tuesday Blitz June 6 Early 2023"]
[White "De La Colina, Nicolas"]
[Black "Mrithyunjay Mahadevan"]
[WhiteFideId "30946921"]
[BlackFideId "45003521"]
[WhiteElo "2046"]
[BlackElo "1626"]
[Result "1-0"]
[Round "5"]
[TimeControl "180+2"]
[Date "2023.06.06"]
[WhiteClock "0:00:13"]
[BlackClock "0:00:48"]
[Board "81"]

1. e4 {[%clk 0:02:58]}  e5 {[%clk 0:02:57]} 2. Nf3 {[%clk 0:02:59]}  Nc6 {[%clk 0:02:58]} 3. Bc4 {[%clk 0:02:59]}  Nf6 {[%clk 0:02:57]} 4. d3 {[%clk 0:03:00]}  h6 {[%clk 0:02:57]} 5. O-O {[%clk 0:02:55]}  d6 {[%clk 0:02:56]} 6. c3 {[%clk 0:02:56]}  g5 {[%clk 0:02:45]} 7. Bb3 {[%clk 0:02:51]}  Bg7 {[%clk 0:02:43]} 8. Na3 {[%clk 0:02:51]}  O-O {[%clk 0:02:42]} 9. Nc4 {[%clk 0:02:51]}  a5 {[%clk 0:02:40]} 10. Ne3 {[%clk 0:02:46]}  Be6 {[%clk 0:02:35]} 11. h4 {[%clk 0:02:23]}  g4 {[%clk 0:02:33]} 12. Nh2 {[%clk 0:02:22]}  h5 {[%clk 0:02:30]} 13. Re1 {[%clk 0:02:16]}  d5 {[%clk 0:02:22]} 14. Qc2 {[%clk 0:02:03]}  d4 {[%clk 0:02:15]} 15. Nf5 {[%clk 0:02:00]}  Bxf5 {[%clk 0:02:14]} 16. exf5 {[%clk 0:02:01]}  Qd7 {[%clk 0:02:13]} 17. Nf1 {[%clk 0:01:42]}  Qxf5 {[%clk 0:02:12]} 18. Ng3 {[%clk 0:01:43]}  Qd7 {[%clk 0:02:11]} 19. Bg5 {[%clk 0:01:40]}  Nd5 {[%clk 0:02:07]} 20. Nxh5 {[%clk 0:01:31]}  f6 {[%clk 0:02:00]} 21. Bd2 {[%clk 0:01:20]}  Kh7 {[%clk 0:01:53]} 22. Nxg7 {[%clk 0:01:09]}  Kxg7 {[%clk 0:01:54]} 23. g3 {[%clk 0:01:01]}  Nb6 {[%clk 0:01:53]} 24. a4 {[%clk 0:00:54]}  Rad8 {[%clk 0:01:50]} 25. Rad1 {[%clk 0:00:54]}  Nd5 {[%clk 0:01:33]} 26. Bc1 {[%clk 0:00:52]}  f5 {[%clk 0:01:30]} 27. Bg5 {[%clk 0:00:21]}  Rde8 {[%clk 0:01:29]} 28. Qd2 {[%clk 0:00:20]}  Kh7 {[%clk 0:01:22]} 29. Re2 {[%clk 0:00:19]}  Qd6 {[%clk 0:01:17]} 30. Rde1 {[%clk 0:00:19]}  Nb6 {[%clk 0:01:12]} 31. Kh2 {[%clk 0:00:18]}  Nd7 {[%clk 0:01:03]} 32. Qc2 {[%clk 0:00:17]}  Nc5 {[%clk 0:01:02]} 33. Bc4 {[%clk 0:00:16]}  Nb8 {[%clk 0:00:51]} 34. cxd4 {[%clk 0:00:12]}  Qxd4 {[%clk 0:00:52]} 35. Be3 {[%clk 0:00:11]}  Qd6 {[%clk 0:00:52]} 36. Bxc5 {[%clk 0:00:11]}  Qxc5 {[%clk 0:00:53]} 37. Bg8+ {[%clk 0:00:12]}  Kxg8 {[%clk 0:00:48]} 38. Qxc5 {[%clk 0:00:13]} 1-0


[Site "https://www.chess.com"]